bitfinex/quotes_BTCUSD_20240819
["timestamp","ask_amount","ask_price","bid_price","bid_amount"]
[1724050656852,1.37543517,58722.0,58721.0,0.02556816]
[1724050657058,1.36711038,58722.0,58721.0,0.02556816]
[1724050657267,0.8394168,58720.0,58708.0,0.0009042]
[1724050657467,1.33126246,58720.0,58708.0,0.0009042]
[1724050657643,1.49075012,58720.0,58708.0,0.0009042]
[1724050657871,1.39055162,58720.0,58708.0,0.0009042]
[1724050658500,1.42055162,58720.0,58708.0,0.0009042]
[1724050658702,1.4704277,58720.0,58717.0,0.0772]
[1724050659158,1.42055162,58720.0,58717.0,0.0772]
[1724050659335,1.4784279,58720.0,58717.0,0.0772]
[1724050659477,1.48880482,58720.0,58717.0,0.0772]
[1724050664546,1.48880482,58720.0,58701.0,0.238494]
[1724050664547,0.119248,58701.0,58698.0,0.0009042]
[1724050664806,0.119248,58701.0,58700.0,0.089431]
[1724050664807,0.120248,58701.0,58700.0,0.089431]
[1724050665027,1.18097413,58701.0,58700.0,0.089431]
[1724050665258,1.20192646,58701.0,58700.0,0.089431]
[1724050665479,1.15200225,58701.0,58700.0,0.089431]
[1724050665694,0.835764,58699.0,58698.0,0.0009042]
[1724050665913,1.10320783,58699.0,58698.0,0.0009042]
[1724050666130,1.14466211,58699.0,58698.0,0.0612042]
[1724050666350,1.38032291,58699.0,58698.0,0.0612042]
[1724050666763,1.06061938,58699.0,58698.0,0.0612042]
[1724050667386,0.93421085,58699.0,58698.0,0.0612042]
[1724050667814,0.21369065,58699.0,58698.0,0.0612042]
[1724050668025,0.02905274,58699.0,58698.0,0.1543042]
[1724050668247,0.02905274,58699.0,58698.0,0.2735582]
[1724050668248,0.03205274,58699.0,58698.0,0.2735582]
[1724050668685,0.03205274,58699.0,58698.0,0.3543582]
[1724050669116,0.02905274,58699.0,58698.0,0.3543582]
[1724050669322,0.03205274,58699.0,58698.0,0.3543582]
[1724050669526,0.003,58699.0,58698.0,0.3543582]
[1724050669728,0.02889207,58699.0,58698.0,0.3543582]
[1724050669930,0.002,58699.0,58698.0,0.3543582]
[1724050670339,0.17018737,58704.0,58700.0,0.1409]
[1724050670551,0.05094537,58705.0,58703.0,0.1401]
[1724050670755,0.05094537,58707.0,58706.0,0.062]
[1724050670956,0.05094537,58708.0,58707.0,0.0781]
[1724050671160,0.119234,58708.0,58706.0,0.1461]
[1724050671568,0.119234,58708.0,58706.0,0.1431]
[1724050671804,0.119234,58708.0,58705.0,0.0794]
[1724050672550,0.11923,58710.0,58706.0,0.0771]
[1724050672802,0.002,58708.0,58706.0,0.0741]
[1724050673011,0.11923,58710.0,58706.0,0.0741]
[1724050673421,0.002,58708.0,58706.0,0.0741]
[1724050673628,0.003,58708.0,58706.0,0.0741]
[1724050674007,0.02706992,58707.0,58706.0,0.193338]
[1724050674239,0.02706992,58707.0,58706.0,0.0741]
[1724050674588,0.12323,58710.0,58707.0,0.0638]
[1724050674996,0.002,58708.0,58707.0,0.0638]
[1724050675198,0.02706992,58709.0,58707.0,0.0638]
[1724050675357,0.12323,58710.0,58707.0,0.0638]
[1724050675558,0.02706992,58708.0,58707.0,0.1389]
[1724050675753,0.119232,58709.0,58707.0,0.1389]
[1724050675754,0.17017737,58709.0,58707.0,0.1389]
[1724050675957,0.02706992,58708.0,58707.0,0.1389]
[1724050676196,0.02906992,58708.0,58707.0,0.1389]
[1724050676412,0.02706992,58708.0,58707.0,0.1389]
[1724050677397,0.07801529,58708.0,58707.0,0.1389]
[1724050677729,0.02806992,58708.0,58707.0,0.1389]
[1724050678267,0.07801529,58708.0,58707.0,0.1389]
[1724050678463,0.07901529,58708.0,58707.0,0.1389]
[1724050680314,0.02806992,58708.0,58707.0,0.1389]
[1724050681315,0.10448798,58708.0,58707.0,0.1389]
[1724050681515,0.10348798,58708.0,58707.0,0.1389]
[1724050681719,0.10448798,58708.0,58707.0,0.1389]
[1724050683101,0.10460895,58708.0,58707.0,0.1389]
[1724050683297,0.02806992,58708.0,58707.0,0.1389]
[1724050683704,0.22500114,58708.0,58707.0,0.1389]
[1724050684398,0.32705319,58708.0,58707.0,0.1389]
[1724050687737,0.32605319,58708.0,58707.0,0.1399]
[1724050689764,0.32687519,58708.0,58707.0,0.1399]
[1724050690972,0.44610919,58708.0,58707.0,0.1399]
[1724050692390,0.4454618,58708.0,58707.0,0.1399]
[1724050695761,0.34335614,58708.0,58707.0,0.1399]
[1724050695966,0.34335614,58708.0,58707.0,0.1389]
[1724050696384,0.119238,58707.0,58705.0,0.0009042]
[1724050696619,0.22135099,58707.0,58705.0,0.0009042]
[1724050696826,0.02709489,58706.0,58705.0,0.0009042]
[1724050697659,0.02709489,58706.0,58705.0,0.0029042]
[1724050697862,0.22298233,58706.0,58705.0,0.0049042]
[1724050698043,0.35062773,58706.0,58705.0,0.0029042]
[1724050698471,0.35062773,58706.0,58705.0,0.0059042]
[1724050699003,0.22298233,58706.0,58705.0,0.0039042]
[1724050699202,0.22298233,58706.0,58705.0,0.0069042]
[1724050703768,0.35062773,58706.0,58705.0,0.0069042]
[1724050704336,0.22298233,58706.0,58705.0,0.0069042]
[1724050704488,0.35062773,58706.0,58705.0,0.0069042]
[1724050705362,0.2728752,58706.0,58705.0,0.0069042]
[1724050705564,0.35062773,58706.0,58705.0,0.0069042]
[1724050706393,0.22298233,58706.0,58705.0,0.0069042]
[1724050706603,0.35062773,58706.0,58705.0,0.0069042]
[1724050707428,0.22298233,58706.0,58705.0,0.0069042]
[1724050707639,0.35062773,58706.0,58705.0,0.0069042]
[1724050708199,0.22298233,58706.0,58705.0,0.0069042]
[1724050708459,0.35062773,58706.0,58705.0,0.0069042]
[1724050710876,0.3498523,58706.0,58705.0,0.0069042]
[1724050711422,0.22218343,58706.0,58705.0,0.0069042]
[1724050712146,0.34142143,58706.0,58705.0,0.0069042]
[1724050712596,0.22218343,58706.0,58705.0,0.0069042]
[1724050713043,0.22218343,58706.0,58705.0,0.0039042]
[1724050713217,0.22218343,58706.0,58705.0,0.0059042]
[1724050715007,0.22218343,58706.0,58705.0,0.0039042]
[1724050715262,0.34142143,58706.0,58705.0,0.0029042]
[1724050715518,0.49462408,58706.0,58705.0,0.0029042]
[1724050715763,0.49462408,58706.0,58705.0,0.0049042]
[1724050716004,0.49462408,58706.0,58705.0,0.0029042]
[1724050716252,0.49462408,58706.0,58705.0,0.0049042]
[1724050716963,0.73310008,58706.0,58705.0,0.0049042]
[1724050717921,0.49462408,58706.0,58705.0,0.0049042]
[1724050718178,0.49462408,58706.0,58705.0,0.0029042]
[1724050718412,0.49462408,58706.0,58705.0,0.0039042]
[1724050718649,0.49462408,58706.0,58705.0,0.0019042]
[1724050718864,0.49462408,58706.0,58705.0,0.0009042]
[1724050719108,0.37538608,58706.0,58705.0,0.0019042]
[1724050719372,0.37538608,58706.0,58705.0,0.1473042]
[1724050719840,0.37538608,58706.0,58705.0,0.1463042]
[1724050720065,0.37774169,58706.0,58705.0,0.1463042]
[1724050720594,0.37874169,58706.0,58705.0,0.1463042]
[1724050721054,0.37974169,58706.0,58705.0,0.1463042]
[1724050721514,0.37874169,58706.0,58705.0,0.1463042]
[1724050722499,0.37574169,58706.0,58705.0,0.1463042]
[1724050722967,0.37674169,58706.0,58705.0,0.1463042]
[1724050724128,0.37674169,58706.0,58705.0,0.0009042]
[1724050724888,0.37694283,58706.0,58705.0,0.0009042]
[1724050726105,0.49618083,58706.0,58705.0,0.0009042]
[1724050726814,0.54609762,58706.0,58705.0,0.0009042]
[1724050727325,0.39259131,58706.0,58705.0,0.0009042]
[1724050727603,1.52687185,58706.0,58705.0,0.0009042]
[1724050727864,1.82304102,58706.0,58705.0,6.51e-06]
[1724050728122,2.07488732,58706.0,58705.0,6.51e-06]
[1724050728352,2.07488732,58706.0,58699.0,0.0009042]
[1724050728353,0.5989008,58700.0,58699.0,0.0009042]
[1724050728584,1.74366439,58700.0,58699.0,0.0009042]
[1724050728799,2.14192989,58700.0,58699.0,0.0009042]
[1724050729001,2.16492989,58700.0,58699.0,0.0009042]
[1724050729888,2.16792989,58700.0,58699.0,0.0009042]
[1724050730086,2.10803981,58700.0,58699.0,0.0009042]
[1724050730299,2.01483981,58700.0,58699.0,0.0009042]
[1724050730498,2.11203981,58700.0,58699.0,0.0009042]
[1724050731930,2.10808901,58700.0,58699.0,0.0009042]
[1724050732162,2.28359435,58700.0,58699.0,0.0009042]
[1724050732489,2.29359522,58700.0,58699.0,0.0009042]
[1724050733739,2.27654514,58700.0,58699.0,0.0009042]
[1724050734628,2.44869995,58700.0,58699.0,0.0009042]
[1724050735213,2.27654514,58700.0,58699.0,0.0009042]
[1724050736620,2.44862572,58700.0,58699.0,0.0009042]
[1724050736800,2.27654514,58700.0,58699.0,0.0009042]
[1724050737134,2.44862566,58700.0,58699.0,0.0009042]
[1724050737769,2.44862566,58700.0,58696.0,0.00013576]
[1724050737970,1.0137458,58697.0,58696.0,0.00013576]
[1724050738212,1.47533079,58697.0,58696.0,0.00013576]
[1724050738421,1.73392081,58697.0,58696.0,0.00013576]
[1724050738642,1.76076503,58697.0,58696.0,0.00013576]
[1724050738851,1.92287862,58697.0,58696.0,0.00013576]
[1724050739224,1.66461423,58697.0,58696.0,0.00013576]
[1724050739429,1.75781423,58697.0,58696.0,0.00013576]
[1724050739884,1.75981423,58697.0,58696.0,0.00013576]
[1724050740222,1.76176503,58697.0,58696.0,0.00013576]
[1724050740424,1.66461423,58697.0,58696.0,0.00013576]
[1724050740728,1.75781423,58697.0,58696.0,0.00013576]
[1724050741537,1.82182969,58697.0,58696.0,0.00013576]
[1724050741712,1.82382969,58697.0,58696.0,0.00013576]
[1724050741915,1.7758637,58697.0,58696.0,0.00013576]
[1724050742114,1.82579503,58697.0,58696.0,0.00013576]
[1724050742493,2.08583916,58697.0,58696.0,0.00013576]
[1724050742702,1.7758637,58697.0,58696.0,0.00013576]
[1724050743538,1.7719129,58697.0,58696.0,0.00013576]
[1724050744049,1.42535836,58697.0,58696.0,0.00013576]
[1724050744250,1.03396738,58697.0,58696.0,0.00013576]
[1724050744669,1.16131589,58697.0,58696.0,0.00013576]
[1724050745487,1.06131589,58697.0,58696.0,0.00013576]
[1724050746585,0.93396738,58697.0,58696.0,0.00013576]
[1724050746786,1.06404877,58697.0,58696.0,0.00013576]
[1724050747390,1.19139728,58697.0,58696.0,0.00013576]
[1724050747795,1.06404877,58697.0,58696.0,0.00013576]
[1724050748130,1.19139728,58697.0,58696.0,0.00013576]
[1724050749209,0.33239093,58697.0,58696.0,0.07803576]
[1724050749415,0.43426175,58697.0,58696.0,0.07803576]
[1724050749630,0.67277475,58697.0,58696.0,0.07803576]
[1724050749847,0.67277475,58697.0,58696.0,0.00013576]
[1724050749848,1.0358382,58697.0,58696.0,0.00013576]
[1724050750051,1.17542687,58697.0,58696.0,0.00013576]
[1724050750685,1.07717427,58697.0,58696.0,0.00013576]
[1724050750928,1.17904489,58697.0,58696.0,0.00013576]
[1724050751132,1.03945622,58697.0,58696.0,0.00013576]
[1724050751765,1.27796922,58697.0,58696.0,0.00013576]
[1724050751971,1.1770986,58697.0,58696.0,0.00013576]
[1724050752215,1.1790494,58697.0,58696.0,0.00013576]
[1724050752670,1.1760986,58697.0,58696.0,0.00013576]
[1724050753288,1.3067353,58697.0,58696.0,0.00013576]
[1724050753909,1.1760986,58697.0,58696.0,0.00013576]
[1724050755426,1.17465,58697.0,58696.0,0.00013576]
[1724050757110,1.22458128,58697.0,58696.0,0.00013576]
[1724050763289,1.22540328,58697.0,58696.0,0.00013576]
[1724050764837,1.22699555,58697.0,58696.0,0.00013576]
[1724050765290,1.38826263,58697.0,58696.0,0.00013576]
[1724050766883,1.22699555,58697.0,58696.0,0.00013576]
[1724050767565,1.37997077,58697.0,58696.0,0.00013576]
[1724050768552,1.64451534,58697.0,58696.0,0.00013576]
[1724050768755,1.72761534,58697.0,58696.0,0.00013576]
[1724050768967,1.57764012,58697.0,58696.0,0.00013576]
[1724050769173,1.74415334,58697.0,58696.0,0.00013576]
[1724050769578,1.91641241,58697.0,58696.0,0.00013576]
[1724050769810,1.91841241,58697.0,58696.0,0.00013576]
[1724050770036,1.91641241,58697.0,58696.0,0.00013576]
[1724050770234,1.92036321,58697.0,58696.0,0.00013576]
[1724050770442,1.74810414,58697.0,58696.0,1.36e-06]
[1724050771865,1.6390496,58697.0,58696.0,1.36e-06]
[1724050772067,1.64935845,58697.0,58696.0,1.36e-06]
[1724050773850,1.64706709,58697.0,58696.0,1.36e-06]
[1724050775075,1.64311629,58697.0,58696.0,1.36e-06]
[1724050779685,1.64706709,58697.0,58696.0,1.36e-06]
[1724050780091,1.81862163,58697.0,58696.0,1.36e-06]
[1724050780507,0.596352,58690.0,58689.0,0.0781]
[1724050780710,0.95827342,58690.0,58689.0,0.0781]
[1724050780832,1.24686538,58690.0,58689.0,0.0781]
[1724050781033,1.24686538,58690.0,58689.0,0.1406]
[1724050781868,1.24886538,58690.0,58689.0,0.1516]
[1724050783121,1.25087136,58690.0,58689.0,0.1516]
[1724050786024,1.41707668,58690.0,58689.0,0.1516]
[1724050787764,1.4191752,58690.0,58689.0,0.1516]
[1724050788228,1.4191752,58690.0,58689.0,0.1525042]
[1724050792310,0.96680621,58690.0,58689.0,0.1525042]
[1724050792512,1.41797169,58690.0,58689.0,0.1525042]
[1724050793147,1.25176637,58690.0,58689.0,0.1525042]
[1724050793476,0.88765892,58690.0,58689.0,0.1525042]
[1724050793678,0.62432931,58690.0,58689.0,0.1525042]
[1724050797077,0.62436527,58690.0,58689.0,0.1525042]
[1724050799041,0.62436527,58690.0,58689.0,0.0119042]
[1724050800952,0.6246234,58690.0,58689.0,0.0119042]
[1724050803777,0.72820903,58690.0,58689.0,0.0119042]
[1724050804596,1.50115748,58690.0,58689.0,0.0119042]
[1724050804792,1.7648056,58690.0,58689.0,0.0119042]
[1724050805003,1.8266056,58690.0,58689.0,0.00054327]
[1724050805623,1.72201997,58690.0,58689.0,0.00054327]
[1724050805847,1.72597077,58690.0,58689.0,0.00054327]
[1724050806051,1.72101997,58690.0,58689.0,0.00254327]
[1724050806253,1.48991997,58690.0,58689.0,0.00254327]
[1724050806671,1.66155016,58690.0,58689.0,0.00254327]
[1724050806854,1.66155016,58690.0,58689.0,0.00454327]
[1724050808208,1.48891997,58690.0,58689.0,0.00454327]
[1724050808551,1.67899547,58690.0,58689.0,0.00454327]
[1724050809313,1.67224608,58690.0,58689.0,0.00454327]
[1724050809743,1.65481154,58690.0,58689.0,0.00454327]
[1724050811365,1.41627054,58690.0,58689.0,0.00454327]
[1724050812853,1.40698467,58690.0,58689.0,0.00454327]
[1724050813484,1.28141822,58690.0,58689.0,0.00454327]
[1724050814274,1.02599843,58690.0,58689.0,0.00454327]
[1724050814457,1.02599843,58690.0,58689.0,0.14574327]
[1724050815839,0.5124125,58690.0,58689.0,0.23894327]
[1724050816045,0.25699271,58690.0,58689.0,0.14574327]
[1724050817488,0.37626271,58690.0,58689.0,0.14574327]
[1724050818265,0.37819595,58690.0,58689.0,0.00454327]
[1724050820189,0.61673695,58690.0,58689.0,0.00454327]
[1724050821710,0.85527795,58690.0,58689.0,0.00454327]
[1724050824424,0.85609995,58690.0,58689.0,0.00454327]
[1724050825365,0.9816664,58690.0,58689.0,0.00454327]
[1724050825565,1.79161472,58690.0,58689.0,0.00454327]
[1724050826004,1.61895817,58690.0,58689.0,0.00454327]
[1724050826193,1.62095817,58690.0,58689.0,0.00454327]
[1724050826390,1.62290897,58690.0,58689.0,0.00454327]
[1724050826551,1.79051271,58690.0,58689.0,0.00454327]
[1724050829122,1.78551271,58690.0,58689.0,0.00454327]
[1724050830058,1.61395817,58690.0,58689.0,0.00454327]
[1724050832448,1.61295817,58690.0,58689.0,0.00454327]
[1724050832649,1.23411717,58690.0,58689.0,0.00454327]
[1724050832879,1.40676611,58690.0,58689.0,0.00454327]
[1724050835557,1.23411717,58690.0,58689.0,0.00454327]
[1724050836597,1.2291534,58690.0,58689.0,0.00454327]
[1724050840392,1.3669534,58690.0,58689.0,0.00454327]
[1724050840609,1.53692184,58690.0,58689.0,0.00454327]
[1724050840817,1.3669534,58690.0,58689.0,0.00454327]
[1724050842123,1.3064534,58690.0,58689.0,0.00454327]
[1724050845397,1.05163673,58690.0,58689.0,0.00454327]
[1724050845593,1.30664923,58690.0,58689.0,0.00454327]
[1724050847014,1.36834923,58690.0,58689.0,0.00454327]
[1724050847544,1.51499923,58690.0,58689.0,0.00454327]
[1724050847990,1.51799923,58690.0,58689.0,0.00454327]
[1724050848201,1.88149103,58690.0,58689.0,0.00043301]
[1724050848406,2.12003203,58690.0,58689.0,0.00043301]
[1724050848614,2.37185283,58690.0,58689.0,0.00043301]
[1724050848828,2.37185283,58690.0,58686.0,0.0009042]
[1724050848829,0.835935,58687.0,58686.0,0.0009042]
[1724050849033,1.54878207,58687.0,58686.0,0.0009042]
[1724050849235,1.83045178,58687.0,58686.0,0.0009042]
[1724050849881,1.81781369,58687.0,58686.0,0.0009042]
[1724050850113,1.81976449,58687.0,58686.0,0.0009042]
[1724050850319,1.99131903,58687.0,58686.0,0.0009042]
[1724050850535,2.00431903,58687.0,58686.0,0.0009042]
[1724050850744,1.99131903,58687.0,58686.0,0.0009042]
[1724050851162,2.00531903,58687.0,58686.0,0.0009042]
[1724050851371,2.01731903,58687.0,58686.0,0.0009042]
[1724050851780,2.00531903,58687.0,58686.0,0.0009042]
[1724050851987,2.24387203,58687.0,58686.0,0.0009042]
[1724050852196,2.25687203,58687.0,58686.0,0.0009042]
[1724050852603,2.22987203,58687.0,58686.0,0.0009042]
[1724050853009,2.25787203,58687.0,58686.0,0.0009042]
[1724050853213,2.24387203,58687.0,58686.0,0.0009042]
[1724050853626,2.25787203,58687.0,58686.0,0.0009042]
[1724050854048,2.24387203,58687.0,58686.0,0.0009042]
[1724050854594,2.25787203,58687.0,58686.0,0.0009042]
[1724050855218,2.26826839,58687.0,58686.0,0.0009042]
[1724050856474,2.52005148,58687.0,58686.0,0.0009042]
[1724050856882,1.2236568,58686.0,58685.0,0.00024589]
[1724050857178,2.13808833,58686.0,58685.0,0.00024589]
[1724050858005,2.13808833,58686.0,58680.0,0.0026335]
[1724050858006,0.1242398,58681.0,58680.0,0.0026335]
[1724050858221,1.31007818,58681.0,58680.0,0.0026335]
[1724050858429,1.79546643,58681.0,58680.0,0.0026335]
[1724050858634,1.82204935,58681.0,58680.0,0.0026335]
[1724050858858,1.82004935,58681.0,58680.0,0.0026335]
[1724050859081,1.80398322,58681.0,58680.0,0.0026335]
[1724050859491,1.81698322,58681.0,58680.0,0.0026335]
[1724050860170,1.98933456,58681.0,58680.0,0.0026335]
[1724050860383,1.81698322,58681.0,58680.0,0.0026335]
[1724050860592,1.72793187,58681.0,58680.0,0.0026335]
[1724050860800,1.64878322,58681.0,58680.0,0.0026335]
[1724050861007,1.66278322,58681.0,58680.0,0.0026335]
[1724050861212,1.66278322,58681.0,58680.0,0.0035377]
[1724050861417,1.73424672,58681.0,58680.0,0.0035377]
[1724050862181,1.73744873,58681.0,58680.0,0.0035377]
[1724050862590,1.57178523,58681.0,58680.0,0.0035377]
[1724050862791,1.33320723,58681.0,58680.0,0.1467377]
[1724050865383,0.54705469,58681.0,58680.0,0.1433377]
[1724050865586,0.99032239,58681.0,58680.0,0.1433377]
[1724050865784,0.94539111,58681.0,58680.0,0.0035377]
[1724050866140,0.93239111,58681.0,58680.0,0.0035377]
[1724050866368,1.34742021,58681.0,58680.0,0.0035377]
[1724050866567,1.4264714,58681.0,58680.0,0.0035377]
[1724050866940,1.4384714,58681.0,58680.0,0.0035377]
[1724050867142,1.4264714,58681.0,58680.0,0.0035377]
[1724050867317,1.54587223,58681.0,58680.0,0.0035377]
[1724050867538,1.55587223,58681.0,58680.0,0.0035377]
[1724050868126,1.56687223,58681.0,58680.0,0.0035377]
[1724050868556,1.55587223,58681.0,58680.0,0.0035377]
[1724050868961,1.56487223,58681.0,58680.0,0.0035377]
[1724050869733,1.54587223,58681.0,58680.0,0.0035377]
[1724050870159,1.72942677,58681.0,58680.0,0.0035377]
[1724050870360,1.71742677,58681.0,58680.0,0.0035377]
[1724050870771,1.73142677,58681.0,58680.0,0.0035377]
[1724050870975,1.71742677,58681.0,58680.0,0.0035377]
[1724050871177,1.72678489,58681.0,58680.0,0.0035377]
[1724050871387,1.73978489,58681.0,58680.0,0.0035377]
[1724050871595,1.71578489,58681.0,58680.0,0.0035377]
[1724050872007,1.72878489,58681.0,58680.0,0.0035377]
[1724050872423,1.71578489,58681.0,58680.0,0.0035377]
[1724050872626,1.71760689,58681.0,58680.0,0.0035377]
[1724050872873,1.72960689,58681.0,58680.0,0.0035377]
[1724050873095,1.74432718,58681.0,58680.0,0.0035377]
[1724050873477,1.73032718,58681.0,58680.0,0.0035377]
[1724050874266,1.74432718,58681.0,58680.0,0.0035377]
[1724050874870,1.74727798,58681.0,58680.0,0.0035377]
[1724050875682,1.82827798,58681.0,58680.0,0.0035377]
[1724050875885,1.82927798,58681.0,58680.0,0.0035377]
[1724050876565,1.82532718,58681.0,58680.0,0.0035377]
[1724050879504,1.82732718,58681.0,58680.0,0.0035377]
[1724050880034,2.1508324,58681.0,58680.0,0.0035377]
[1724050880164,2.2508324,58681.0,58680.0,0.00055772]
[1724050881525,2.2468816,58681.0,58680.0,0.00055772]
[1724050882271,2.07532706,58681.0,58680.0,0.00055772]
[1724050883193,1.67184906,58681.0,58680.0,0.00055772]
[1724050883395,1.84325135,58681.0,58680.0,0.00055772]
[1724050885352,1.84425135,58681.0,58680.0,0.00055772]
[1724050886132,1.67184906,58681.0,58680.0,0.00055772]
[1724050886536,1.8434036,58681.0,58680.0,0.00055772]
[1724050890748,1.67184906,58681.0,58680.0,0.00055772]
[1724050891692,1.57764906,58681.0,58680.0,0.00055772]
[1724050891896,0.74262606,58681.0,58680.0,0.13985772]
[1724050892126,0.51876388,58681.0,58680.0,0.13985772]
[1724050892327,0.69136118,58681.0,58680.0,0.13985772]
[1724050892529,0.39947488,58681.0,58680.0,0.13985772]
[1724050892706,0.51876388,58681.0,58680.0,0.13985772]
[1724050892920,0.50576388,58681.0,58680.0,0.13985772]
[1724050893135,0.49176388,58681.0,58680.0,0.13985772]
[1724050893338,0.91593918,58681.0,58680.0,0.13985772]
[1724050893540,1.15909036,58681.0,58680.0,0.13985772]
[1724050893740,1.14609036,58681.0,58680.0,0.13985772]
[1724050893915,1.15609036,58681.0,58680.0,0.13985772]
[1724050894447,0.92493918,58681.0,58680.0,0.13985772]
[1724050894856,1.05360472,58681.0,58680.0,0.13985772]
[1724050895178,1.1241586,58681.0,58680.0,0.13985772]
[1724050895384,0.89000742,58681.0,58680.0,0.13985772]
[1724050895566,1.0627008,58681.0,58680.0,0.13985772]
[1724050896937,0.92203526,58681.0,58680.0,0.13985772]
[1724050897341,1.16518644,58681.0,58680.0,0.13985772]
[1724050898016,1.30518644,58681.0,58680.0,0.00055772]
[1724050898198,1.60452451,58681.0,58680.0,0.00055772]
[1724050898605,1.77607905,58681.0,58680.0,0.00055772]
[1724050899232,1.75707905,58681.0,58680.0,0.00055772]
[1724050899432,1.76907905,58681.0,58680.0,0.00055772]
[1724050899587,1.78307905,58681.0,58680.0,0.00055772]
[1724050900391,1.90607905,58681.0,58680.0,0.00055772]
[1724050900583,1.90212825,58681.0,58680.0,0.00012236]
[1724050901195,1.89012825,58681.0,58680.0,0.00012236]
[1724050901398,1.65297371,58681.0,58680.0,0.00012236]
[1724050901599,1.64197371,58681.0,58680.0,0.00012236]
[1724050902057,1.62997371,58681.0,58680.0,0.00012236]
[1724050902486,1.64297371,58681.0,58680.0,0.00012236]
[1724050902773,1.62897371,58681.0,58680.0,0.00012236]
[1724050903204,1.64297371,58681.0,58680.0,0.00012236]
[1724050903404,1.62897371,58681.0,58680.0,0.00012236]
[1724050903607,1.64397371,58681.0,58680.0,0.00012236]
[1724050904279,1.75210966,58681.0,58680.0,0.00012236]
[1724050904472,1.67670966,58681.0,58680.0,0.00012236]
[1724050905757,1.79330966,58681.0,58680.0,0.00012236]
[1724050907326,1.78934917,58681.0,58680.0,0.00012236]
[1724050911299,1.67274917,58681.0,58680.0,0.00012236]
[1724050911511,1.56361322,58681.0,58680.0,0.00012236]
[1724050911719,1.32503522,58681.0,58680.0,0.13802236]
[1724050912778,1.08645722,58681.0,58680.0,0.13802236]
[1724050912985,0.26569163,58681.0,58680.0,0.13802236]
[1724050913832,0.25269163,58681.0,58680.0,0.13802236]
[1724050914045,0.23869163,58681.0,58680.0,0.13802236]
[1724050914248,0.25069163,58681.0,58680.0,0.13802236]
[1724050914482,0.25969163,58681.0,58680.0,0.13802236]
[1724050914687,0.24769163,58681.0,58680.0,0.13802236]
[1724050915111,0.25369163,58681.0,58680.0,0.13802236]
[1724050915513,0.23869163,58681.0,58680.0,0.13802236]
[1724050915929,0.24469163,58681.0,58680.0,0.13802236]
[1724050916131,0.23869163,58681.0,58680.0,0.13802236]
[1724050916337,0.23422245,58681.0,58680.0,0.13802236]
[1724050916543,0.23422245,58681.0,58680.0,0.25731336]
[1724050916544,0.39268135,58681.0,58680.0,0.25731336]
[1724050916752,0.1897511,58681.0,58680.0,0.49589536]
[1724050917389,0.1947511,58681.0,58680.0,0.49589536]
[1724050917982,0.1897511,58681.0,58680.0,0.49589536]
[1724050918639,0.1847511,58681.0,58680.0,0.73447736]
[1724050918849,0.31356684,58681.0,58680.0,0.73447736]
[1724050919055,0.02840492,58681.0,58680.0,2.47405936]
[1724050919265,0.10409197,58681.0,58680.0,2.47405936]
[1724050919535,0.02740492,58681.0,58680.0,2.47405936]
[1724050919719,0.000822,58681.0,58680.0,2.47405936]
[1724050920148,0.000822,58681.0,58680.0,2.6456139]
[1724050920771,0.001822,58681.0,58680.0,2.6456139]
[1724050920995,0.001822,58681.0,58680.0,2.6446139]
[1724050921336,0.001822,58681.0,58680.0,2.6456139]
[1724050921748,0.001822,58681.0,58680.0,2.6446139]
[1724050921950,0.000822,58681.0,58680.0,2.6446139]
[1724050922165,0.002822,58681.0,58680.0,2.6466139]
[1724050922793,0.001822,58681.0,58680.0,2.6446139]
[1724050923127,0.000822,58681.0,58680.0,2.6446139]
[1724050923315,0.001822,58681.0,58680.0,2.6446139]
[1724050923497,0.000822,58681.0,58680.0,2.6446139]
[1724050924171,0.001822,58681.0,58680.0,2.6466139]
[1724050924380,0.002822,58681.0,58680.0,2.6466139]
[1724050924784,0.001822,58681.0,58680.0,2.6446139]
[1724050924984,0.002822,58681.0,58680.0,2.6466139]
[1724050925624,0.000822,58681.0,58680.0,2.6446139]
[1724050926038,0.002822,58681.0,58680.0,2.6476139]
[1724050926232,0.001822,58681.0,58680.0,2.6476139]
[1724050926657,0.002822,58681.0,58680.0,2.6476139]
[1724050927860,0.002822,58681.0,58680.0,2.7642139]
[1724050929125,0.001822,58681.0,58680.0,2.7612139]
[1724050929334,0.000822,58681.0,58680.0,2.9997959]
[1724050929534,0.001822,58681.0,58680.0,2.8662139]
[1724050929784,0.000822,58690.0,58680.0,2.8662139]
[1724050929785,0.000822,58690.0,58689.0,0.976907]
[1724050929988,0.000822,58690.0,58689.0,1.26506154]
[1724050930394,0.000822,58690.0,58689.0,1.36506154]
[1724050931330,0.000822,58690.0,58689.0,2.86506154]
[1724050932559,0.001822,58690.0,58689.0,2.87506154]
[1724050932763,0.002822,58690.0,58689.0,2.88706154]
[1724050933135,0.001822,58690.0,58689.0,2.76046154]
[1724050933345,0.002822,58690.0,58689.0,2.89106154]
[1724050934147,0.002822,58690.0,58689.0,2.87906154]
[1724050934148,0.001822,58690.0,58689.0,2.87906154]
[1724050934434,0.002822,58690.0,58689.0,2.89306154]
[1724050940176,0.002822,58690.0,58689.0,2.89988854]
[1724050948229,0.002822,58690.0,58689.0,3.13943354]
[1724050950226,0.002822,58690.0,58689.0,3.14143354]
[1724050951722,0.002822,58690.0,58689.0,3.16643354]
[1724050954624,0.002822,58690.0,58689.0,3.16243354]
[1724050954783,0.002822,58690.0,58689.0,3.16443354]
[1724050955485,0.002822,58690.0,58689.0,3.16643354]
[1724050956962,0.002822,58690.0,58689.0,3.04583354]
[1724050957167,0.002822,58690.0,58689.0,3.16243354]
[1724050959038,0.002822,58690.0,58689.0,3.16443354]
[1724050960922,0.002822,58690.0,58689.0,3.16643354]
[1724050961577,0.002822,58690.0,58689.0,3.16143354]
[1724050961796,0.002822,58690.0,58689.0,3.13843354]
[1724050962208,0.002822,58690.0,58689.0,3.16143354]
[1724050962419,0.002822,58690.0,58689.0,3.16443354]
[1724050963030,0.002822,58690.0,58689.0,3.16433354]
[1724050963996,0.002822,58690.0,58689.0,3.16133354]
[1724050964207,0.002822,58690.0,58689.0,3.16433354]
[1724050969065,0.002822,58690.0,58689.0,3.16633354]
[1724050970078,0.002822,58690.0,58689.0,3.16433354]
[1724050970703,0.002822,58690.0,58689.0,3.16633354]
[1724050970905,0.002822,58690.0,58689.0,3.16433354]
[1724050973316,0.002822,58690.0,58689.0,3.40487854]
[1724050973924,0.000822,58697.0,58689.0,3.40487854]
[1724050973925,0.000822,58697.0,58696.0,0.122258]
[1724050974137,0.000822,58706.0,58705.0,0.47422]
[1724050974352,0.000822,58706.0,58705.0,1.22273454]
[1724050974561,0.02795049,58706.0,58705.0,1.22273454]
[1724050974737,0.000822,58706.0,58705.0,2.72273454]
[1724050975815,0.001822,58706.0,58705.0,2.73673454]
[1724050976032,0.001822,58706.0,58705.0,2.72273454]
[1724050976475,0.002822,58706.0,58705.0,2.73673454]